fUST/lending_fUST_20250312
["ID","MTS","AMOUNT","RATE_DAILY","PERIOD"]
[355999506,1741791038206,-500.0,0.0001655,2]
[355999507,1741791038216,-500.0,0.0001655,2]
[355999508,1741791038226,-500.0,0.0001655,2]
[355999509,1741791038236,-500.0,0.0001655,2]
[355999510,1741791038246,-500.0,0.0001655,2]
[355999511,1741791038256,-500.0,0.0001655,2]
[355999512,1741791038266,-500.0,0.0001655,2]
[355999513,1741791038276,-500.0,0.0001655,2]
[355999514,1741791038286,-500.0,0.0001655,2]
[355999515,1741791038298,-500.0,0.0001655,2]
[355999516,1741791038307,-500.0,0.0001655,2]
[355999517,1741791038318,-500.0,0.0001655,2]
[355999518,1741791038327,-500.0,0.0001655,2]
[355999519,1741791038337,-500.0,0.0001655,2]
[355999520,1741791038347,-500.0,0.0001655,2]
[355999521,1741791038357,-500.0,0.0001655,2]
[355999522,1741791038369,-500.0,0.0001655,2]
[355999523,1741791038379,-500.0,0.0001655,2]
[355999524,1741791038389,-500.0,0.0001655,2]
[355999525,1741791038399,-500.0,0.0001655,2]
[355999526,1741791038410,-500.0,0.0001655,2]
[355999527,1741791038420,-500.0,0.0001655,2]
[355999528,1741791038430,-500.0,0.0001655,2]
[355999529,1741791038439,-500.0,0.0001655,2]
[355999530,1741791038449,-500.0,0.0001655,2]
[355999531,1741791038459,-500.0,0.0001655,2]
[355999532,1741791038468,-500.0,0.0001655,2]
[355999533,1741791038478,-500.0,0.0001655,2]
[355999534,1741791038488,-500.0,0.0001655,2]
[355999535,1741791038497,-500.0,0.0001655,2]
[355999536,1741791038507,-500.0,0.0001655,2]
[355999537,1741791038516,-500.0,0.0001655,2]
[355999538,1741791038526,-258.18149365,0.0001655,2]
[355999539,1741791038536,-1018.50642575,0.00016552,2]
[355999540,1741791038548,-47437.80921414,0.00016557,2]
[355999541,1741791038565,-429.89433542,0.00016557,2]
[355999542,1741791038590,-174132.29645044,0.00016557,2]
[355999543,1741791038600,-500.0,0.00016573,2]
[355999544,1741791038611,-500.0,0.00016573,2]
[355999545,1741791038621,-430.64056415,0.00016573,2]
[355999546,1741791038631,-500.0,0.00016573,2]
[355999547,1741791038641,-500.0,0.00016573,2]
[355999548,1741791038652,-474.54793428,0.00016573,2]
[355999549,1741791038662,-500.0,0.00016573,2]
[355999550,1741791038671,-500.0,0.00016573,2]
[355999551,1741791038681,-500.0,0.00016573,2]
[355999552,1741791038690,-500.0,0.00016573,2]
[355999553,1741791038700,-500.0,0.00016573,2]
[355999554,1741791038710,-500.0,0.00016573,2]
[355999555,1741791038720,-500.0,0.00016573,2]
[355999556,1741791038729,-500.0,0.00016573,2]
[355999557,1741791038739,-577.76285036,0.00016573,2]
[355999558,1741791038749,-500.0,0.00016573,2]
[355999559,1741791038759,-502.97438894,0.00016573,2]
[355999560,1741791038768,-500.0,0.00016573,2]
[355999561,1741791038779,-500.0,0.00016573,2]
[355999562,1741791038789,-500.0,0.00016573,2]
[355999563,1741791038801,-500.0,0.00016573,2]
[355999564,1741791038811,-500.0,0.00016573,2]
[355999565,1741791038821,-500.0,0.00016573,2]
[355999566,1741791038831,-542.95539186,0.00016573,2]
[355999567,1741791038841,-153.05187386,0.00016573,2]
[355999568,1741791038851,-500.0,0.00016573,2]
[355999569,1741791038860,-264.170013,0.00016573,2]
[355999570,1741791038870,-500.0,0.00016573,2]
[355999571,1741791038879,-500.0,0.00016573,2]
[355999572,1741791038889,-500.0,0.00016573,2]
[355999573,1741791038899,-1000.0,0.00016648,2]
[355999574,1741791038909,-1000.0,0.00016648,2]
[355999575,1741791038919,-1000.0,0.00016648,2]
[355999576,1741791038931,-1000.0,0.00016648,2]
[355999577,1741791038940,-1000.0,0.00016648,2]
[355999578,1741791038950,-1000.0,0.00016648,2]
[355999579,1741791038960,-1000.0,0.00016648,2]
[355999580,1741791038970,-1000.0,0.00016648,2]
[355999581,1741791038980,-1000.0,0.00016648,2]
[355999582,1741791038990,-1000.0,0.00016648,2]
[355999583,1741791039000,-1000.0,0.00016648,2]
[355999584,1741791039010,-1000.0,0.00016648,2]
[355999585,1741791039020,-1000.0,0.00016648,2]
[355999586,1741791039030,-1000.0,0.00016648,2]
[355999587,1741791039043,-1000.0,0.00016648,2]
[355999588,1741791039053,-1000.0,0.00016648,2]
[355999589,1741791039063,-1000.0,0.00016648,2]
[355999590,1741791039073,-1000.0,0.00016648,2]
[355999591,1741791039083,-1000.0,0.00016648,2]
[355999592,1741791039092,-893.01691904,0.00016648,2]
[355999593,1741791039102,-150.0,0.00016719,3]
[355999594,1741791039112,-251.0,0.00016719,3]
[355999595,1741791039123,-501.0,0.00016719,3]
[355999596,1741791039132,-1002.0,0.00016719,3]
[355999597,1741791039142,-2005.0,0.00016719,3]
[355999598,1741791039153,-4010.0,0.00016719,3]
[355999599,1741791039163,-8019.0,0.00016719,3]
[355999600,1741791039173,-10129.0,0.00016719,3]
[355999601,1741791039182,-15611.0,0.00016719,3]
[355999602,1741791039194,-16039.0,0.00016719,3]
[355999603,1741791039204,-24779.0,0.00016719,3]
[355999604,1741791039214,-152.0,0.00016764,2]
[355999605,1741791039224,-4126.3070142,0.00016847,5]
[355999606,1741791039234,-337.27132812,0.00017815,2]
[355999607,1741791039243,-308.0,0.000179,7]
[355999608,1741791039426,-2509.88,0.00018,2]
[355999609,1741791039469,-391.57163783,0.00018083,2]
[355999610,1741791039479,-420.0,0.00018084,2]
[355999611,1741791039489,-194.88,0.000186,2]
[355999612,1741791039498,-1506.82113607,0.000186,2]
[355999613,1741791039508,-1506.82113586,0.000186,2]
[355999614,1741791039517,-1506.82113586,0.00019245,2]
[355999615,1741791039527,-151.0,0.000194,2]
[355999616,1741791039537,-308.0,0.000194,8]
[355999617,1741791039550,-391.57163783,0.00019693,2]
[355999618,1741791039559,-2200.0,0.00019712,2]
[355999620,1741791039569,-150.0,0.00019747,2]
[355999621,1741791039578,-1920.0,0.00019747,2]
[355999622,1741791039587,-540.0,0.00019747,2]
[355999623,1741791039597,-2272.0,0.00019747,2]
[355999624,1741791039606,-587.0,0.00019761,2]
[355999625,1741791039615,-265.49602328,0.00019921,2]
[355999626,1741791039625,-200.009412,0.00019973,2]
[355999627,1741791039634,-500.0,0.00019973,2]
[355999628,1741791039643,-500.0,0.00019973,2]
[355999629,1741791039653,-500.0,0.00019973,2]
[355999630,1741791039663,-500.0,0.00019973,2]
[355999631,1741791039673,-500.0,0.00019973,2]
[355999632,1741791039682,-500.0,0.00019973,2]
[355999633,1741791039691,-500.0,0.00019973,2]
[355999634,1741791039702,-500.0,0.00019973,2]
[355999635,1741791039713,-230.31197625,0.00019973,2]
[355999636,1741791039722,-347.65297779,0.00019973,2]
[355999637,1741791039732,-500.0,0.00019973,2]
[355999638,1741791039743,-500.0,0.00019973,2]
[355999639,1741791039754,-336.53864466,0.00019973,2]
[355999640,1741791039764,-371.84928285,0.00019973,2]
[355999641,1741791039773,-500.0,0.00019973,2]
[355999642,1741791039783,-500.0,0.00019973,2]
[355999643,1741791039794,-557.44440919,0.00019973,2]
[355999646,1741791039803,-500.0,0.00019973,2]
[355999649,1741791039813,-500.0,0.00019973,2]
[355999651,1741791039823,-500.0,0.00019973,2]
[355999653,1741791039834,-500.0,0.00019973,2]
[355999654,1741791039844,-500.0,0.00019973,2]
[355999656,1741791039853,-585.86801385,0.00019973,2]
[355999658,1741791039863,-162.76484165,0.00019973,2]
[355999660,1741791039872,-509.74681699,0.00019973,2]
[355999663,1741791039881,-444.65147585,0.00019973,2]
[355999666,1741791039891,-500.0,0.00019973,2]
[355999669,1741791039900,-501.89243316,0.00019973,2]
[355999671,1741791039910,-500.0,0.00019973,2]
[355999672,1741791039919,-183.22346333,0.00019973,2]
[355999673,1741791039929,-530.27427019,0.00019973,2]
[355999674,1741791039939,-500.0,0.00019973,2]
[355999675,1741791039949,-500.0,0.00019973,2]
[355999676,1741791039958,-599.82939063,0.00019973,2]
[355999677,1741791039967,-284.36258264,0.00019973,2]
[355999678,1741791039977,-500.0,0.00019973,2]
[355999679,1741791039987,-500.0,0.00019973,2]
[355999680,1741791039997,-62868.0,0.0002,2]
[355999681,1741791040007,-62868.0,0.0002,2]
[355999682,1741791040017,-62868.0,0.0002,2]
[355999683,1741791040036,-62868.0,0.0002,2]
[355999684,1741791040050,-62868.0,0.0002,2]
[355999685,1741791040060,-13519.508,0.0002,2]
[355999686,1741791040070,-160.0,0.0002,3]
[355999687,1741791040080,-151.0,0.000201,3]
[355999688,1741791040090,-1506.82113586,0.00020417,2]
[355999689,1741791040101,-151.0,0.000205,4]
[355999691,1741791040111,-151.09991095,0.00020548,2]
[355999693,1741791040121,-151.0,0.000208,3]
[355999694,1741791040131,-308.0,0.000209,9]
[355999695,1741791040140,-15577.25547611,0.00021055,2]
[355999696,1741791040151,-416.66666667,0.00021055,2]
[355999697,1741791040161,-160.0,0.00021055,2]
[355999698,1741791040171,-160.0,0.00021055,2]
[355999699,1741791040181,-151.0,0.000213,3]
[355999700,1741791040191,-391.57163783,0.00021303,2]
[355999701,1741791040201,-151.0,0.000214,3]
[355999702,1741791040211,-151.0,0.000215,4]
[355999703,1741791040221,-1506.82113586,0.0002159,2]
[355999704,1741791040230,-823.0,0.00021593,2]
[355999705,1741791040240,-3000.0,0.00021817,2]
[355999706,1741791040250,-174.09255559,0.00021817,2]
[355999707,1741791040260,-160.09593513,0.0002189,2]
[355999708,1741791040269,-141832.3957,0.00021916,2]
[355999709,1741791040279,-502.00413425,0.00021917,2]
[355999710,1741791040290,-504.96513202,0.00021917,2]
[355999711,1741791040299,-506.07395047,0.00021917,2]
[355999712,1741791040309,-500.0,0.00021917,2]
[355999713,1741791040319,-500.0,0.00021917,2]
[355999714,1741791040328,-500.0,0.00021917,2]
[355999715,1741791040339,-502.10240063,0.00021917,2]
[355999716,1741791040349,-505.39198168,0.00021917,2]
[355999717,1741791040359,-269.85497192,0.00021917,2]
[355999718,1741791040373,-511.76007996,0.00021917,2]
[355999719,1741791040383,-510.81819422,0.00021917,2]
[355999720,1741791040393,-514.65951519,0.00021917,2]
[355999721,1741791040403,-774.16,0.00021917,2]
[355999722,1741791040413,-409.94154966,0.00021917,2]
[355999723,1741791040424,-509.9173985,0.00021917,2]
[355999724,1741791040434,-400.03262399,0.00021917,2]
[355999725,1741791040444,-501.04247637,0.00021917,2]
[355999726,1741791040455,-501.29052873,0.00021917,2]
[355999727,1741791040466,-586.2877314,0.00021917,2]
[355999728,1741791040475,-504.77159601,0.00021917,2]
[355999729,1741791040485,-500.91488741,0.00021917,2]
[355999731,1741791040494,-513.1934037,0.00021917,2]
[355999733,1741791040504,-505.12944844,0.00021917,2]
[355999735,1741791040513,-506.6040403,0.00021917,2]
[355999737,1741791040523,-502.00304415,0.00021917,2]
[355999738,1741791040534,-317.08529297,0.00021917,2]
[355999739,1741791040545,-500.0,0.00021917,2]
[355999741,1741791040554,-204.1440205,0.00021917,2]
[355999742,1741791040564,-507.33744744,0.00021917,2]
[355999744,1741791040573,-505.95873464,0.00021917,2]
[355999746,1741791040583,-518.95376314,0.00021917,2]
[355999747,1741791040594,-507.79973897,0.00021917,2]
[355999748,1741791040604,-509.0700847,0.00021917,2]
[355999749,1741791040614,-513.09017446,0.00021917,2]
[355999751,1741791040624,-512.23505407,0.00021917,2]
[355999752,1741791040634,-505.44945636,0.00021917,2]
[355999753,1741791040643,-500.0,0.00021917,2]
[355999754,1741791040653,-501.00112667,0.00021917,2]
[355999755,1741791040662,-508.71838752,0.00021917,2]
[355999756,1741791040671,-225.70543005,0.00021917,2]
[355999757,1741791040681,-552.28402071,0.00021917,2]
[355999758,1741791040691,-520.20126565,0.00021917,2]
[355999759,1741791040701,-507.98072865,0.00021917,2]
[355999760,1741791040710,-517.08030786,0.00021917,2]
[355999761,1741791040720,-507.14291318,0.00021917,2]
[355999762,1741791040729,-500.0,0.00021917,2]
[355999763,1741791040739,-518.81271683,0.00021917,2]
[355999764,1741791040749,-500.0,0.00021917,2]
[355999765,1741791040759,-500.0,0.00021917,2]
[355999766,1741791040768,-517.62197839,0.00021917,2]
[355999767,1741791040778,-502.20626117,0.00021917,2]
[355999768,1741791040788,-500.0,0.00021917,2]
[355999769,1741791040799,-500.0,0.00021917,2]
[355999770,1741791040809,-520.36631491,0.00021917,2]
[355999771,1741791040819,-508.49291979,0.00021917,2]
[355999772,1741791040828,-526.67223749,0.00021917,2]
[355999773,1741791040838,-500.0,0.00021917,2]
[355999774,1741791040847,-514.11227303,0.00021917,2]
[355999775,1741791040857,-500.0,0.00021917,2]
[355999776,1741791040867,-510.64584715,0.00021917,2]
[355999777,1741791040876,-500.0,0.00021917,2]
[355999778,1741791040886,-500.0,0.00021917,2]
[355999779,1741791040896,-500.0,0.00021917,2]
[355999780,1741791040905,-515.54027716,0.00021917,2]
[355999781,1741791040915,-513.12423981,0.00021917,2]
[355999782,1741791040925,-510.98112505,0.00021917,2]
[355999783,1741791040935,-507.30524391,0.00021917,2]
[355999784,1741791040946,-505.97256253,0.00021917,2]
[355999785,1741791040955,-500.0,0.00021917,2]
[355999786,1741791040965,-500.0,0.00021917,2]
[355999787,1741791040976,-500.0,0.00021917,2]
[355999788,1741791040985,-500.0,0.00021917,2]
[355999789,1741791040995,-517.93641567,0.00021917,2]
[355999790,1741791041004,-517.79066561,0.00021917,2]
[355999791,1741791041014,-507.61086561,0.00021917,2]
[355999792,1741791041024,-500.0,0.00021917,2]
[355999793,1741791041035,-516.01324364,0.00021917,2]
[355999794,1741791041047,-500.0,0.00021917,2]
[355999795,1741791041057,-158.0293837,0.00021917,2]
[355999796,1741791041067,-500.0,0.00021917,2]
[355999797,1741791041076,-504.99093472,0.00021917,2]
[355999798,1741791041086,-443.582252,0.00021917,2]
[355999799,1741791041096,-177.76818963,0.00021917,2]
[355999800,1741791041107,-500.0,0.00021917,2]
[355999801,1741791041116,-500.0,0.00021917,2]
[355999802,1741791041126,-500.0,0.00021917,2]
[355999803,1741791041135,-500.0,0.00021917,2]
[355999804,1741791041145,-500.0,0.00021917,2]
[355999805,1741791041155,-500.0,0.00021917,2]
[355999806,1741791041165,-545.88626564,0.00021917,2]
[355999807,1741791041174,-500.0,0.00021917,2]
[355999808,1741791041184,-862.58,0.00021917,2]
[355999809,1741791041194,-511.02940284,0.00021917,2]
[355999810,1741791041203,-511.42032898,0.00021917,2]
[355999811,1741791041213,-602.11467675,0.00021917,2]
[355999812,1741791041222,-1093.17,0.00021917,2]
[355999813,1741791041232,-495.01422473,0.00021917,2]
[355999814,1741791041242,-166.29440643,0.00021917,2]
[355999815,1741791041252,-520.06858878,0.00021917,2]
[355999816,1741791041262,-260.32,0.00021917,2]
[355999817,1741791041272,-500.0,0.00021917,2]
[355999818,1741791041282,-500.85932994,0.00021917,2]
[355999819,1741791041295,-500.0,0.00021917,2]
[355999820,1741791041305,-520.50517129,0.00021917,2]
[355999821,1741791041315,-514.34267357,0.00021917,2]
[355999822,1741791041324,-500.0,0.00021917,2]
[355999823,1741791041334,-500.0,0.00021917,2]
[355999824,1741791041344,-500.0,0.00021917,2]
[355999825,1741791041353,-503.92100872,0.00021917,2]
[355999826,1741791041367,-624.56,0.00021917,2]
[355999827,1741791041378,-517.22708089,0.00021917,2]
[355999828,1741791041388,-502.93936821,0.00021917,2]
[355999829,1741791041398,-784.42,0.00021917,2]
[355999830,1741791041408,-386.11062339,0.00021917,2]
[355999831,1741791041418,-500.0,0.00021917,2]
[355999832,1741791041427,-500.0,0.00021917,2]
[355999833,1741791041437,-500.0,0.00021917,2]
[355999834,1741791041448,-504.29042166,0.00021917,2]
[355999835,1741791041457,-506.10192912,0.00021917,2]
[355999836,1741791041467,-500.0,0.00021917,2]
[355999837,1741791041476,-500.0,0.00021917,2]
[355999838,1741791041486,-500.0,0.00021917,2]
[355999839,1741791041495,-500.0,0.00021917,2]
[355999840,1741791041505,-500.0,0.00021917,2]
[355999841,1741791041515,-500.0,0.00021917,2]
[355999842,1741791041524,-638.37521778,0.00021917,2]
[355999843,1741791041534,-500.0,0.00021917,2]
[355999844,1741791041545,-509.64754391,0.00021917,2]
[355999845,1741791041555,-512.35095462,0.00021917,2]
[355999846,1741791041564,-513.02273915,0.00021917,2]
[355999847,1741791041574,-495.72761307,0.00021917,2]
[355999848,1741791041583,-500.0,0.00021917,2]
[355999849,1741791041593,-546.45,0.00021917,2]
[355999850,1741791041603,-515.08191736,0.00021917,2]
[355999851,1741791041612,-1192.06,0.00021917,2]
[355999852,1741791041622,-520.24598827,0.00021917,2]
[355999853,1741791041631,-500.0,0.00021917,2]
[355999854,1741791041641,-501.50883965,0.00021917,2]
[355999855,1741791041651,-1228.55,0.00021917,2]
[355999856,1741791041660,-508.55164121,0.00021917,2]
[355999857,1741791041670,-869.92,0.00021917,2]
[355999858,1741791041679,-516.97291656,0.00021917,2]
[355999859,1741791041689,-523.10085203,0.00021917,2]
[355999860,1741791041699,-508.32868218,0.00021917,2]
[355999861,1741791041708,-500.0,0.00021917,2]
[355999862,1741791041718,-500.0,0.00021917,2]
[355999863,1741791041727,-510.10482625,0.00021917,2]
[355999864,1741791041737,-500.0,0.00021917,2]
[355999865,1741791041747,-512.03991349,0.00021917,2]
[355999866,1741791041756,-489.42372418,0.00021917,2]
[355999867,1741791041766,-500.0,0.00021917,2]
[355999868,1741791041776,-500.0,0.00021917,2]
[355999869,1741791041786,-305.27899074,0.00021917,2]
[355999870,1741791041797,-500.0,0.00021917,2]
[355999871,1741791041807,-518.17409239,0.00021917,2]
[355999872,1741791041816,-429.80755991,0.00021917,2]
[355999873,1741791041825,-500.0,0.00021917,2]
[355999874,1741791041835,-525.16557436,0.00021917,2]
[355999875,1741791041844,-500.0,0.00021917,2]
[355999876,1741791041854,-517.86749121,0.00021917,2]
[355999877,1741791041863,-500.0,0.00021917,2]
[355999878,1741791041873,-313.66917543,0.00021917,2]
[355999879,1741791041883,-428.4761151,0.00021917,2]
[355999880,1741791041893,-500.0,0.00021917,2]
[355999881,1741791041902,-535.96563099,0.00021917,2]
[355999882,1741791041912,-500.0,0.00021917,2]
[355999883,1741791041921,-632.11695711,0.00021917,2]
[355999884,1741791041932,-500.0,0.00021917,2]
[355999885,1741791041941,-500.0,0.00021917,2]
[355999886,1741791041950,-500.0,0.00021917,2]
[355999887,1741791041960,-500.0,0.00021917,2]
[355999888,1741791041969,-509.16483294,0.00021917,2]
[355999889,1741791041979,-500.0,0.00021917,2]
[355999890,1741791041989,-500.0,0.00021917,2]
[355999891,1741791041998,-731.19,0.00021917,2]
[355999892,1741791042007,-500.0,0.00021917,2]
[355999893,1741791042017,-500.0,0.00021917,2]
[355999894,1741791042026,-500.0,0.00021917,2]
[355999895,1741791042036,-501.3689984,0.00021917,2]
[355999896,1741791042049,-500.0,0.00021917,2]
[355999897,1741791042059,-517.62664884,0.00021917,2]
[355999898,1741791042068,-567.86,0.00021917,2]
[355999899,1741791042078,-500.0,0.00021917,2]
[355999900,1741791042087,-500.0,0.00021917,2]
[355999901,1741791042097,-171.36884901,0.00021917,2]
[355999902,1741791042107,-500.0,0.00021917,2]
[355999903,1741791042117,-511.01215018,0.00021917,2]
[355999904,1741791042127,-514.82313136,0.00021917,2]
[355999905,1741791042138,-500.0,0.00021917,2]
[355999906,1741791042150,-751.38,0.00021917,2]
[355999907,1741791042159,-500.0,0.00021917,2]
[355999908,1741791042169,-500.0,0.00021917,2]
[355999909,1741791042179,-508.88319553,0.00021917,2]
[355999910,1741791042188,-511.32755426,0.00021917,2]
[355999911,1741791042198,-517.46512177,0.00021917,2]
[355999912,1741791042208,-500.0,0.00021917,2]
[355999913,1741791042217,-520.63928527,0.00021917,2]
[355999914,1741791042227,-500.0,0.00021917,2]
[355999915,1741791042236,-500.0,0.00021917,2]
[355999916,1741791042246,-664.93,0.00021917,2]
[355999917,1741791042255,-500.0,0.00021917,2]
[355999918,1741791042265,-519.23138082,0.00021917,2]
[355999919,1741791042275,-512.87854661,0.00021917,2]
[355999920,1741791042284,-500.0,0.00021917,2]
[355999921,1741791042296,-254.53355088,0.00021917,2]
[355999922,1741791042306,-512.83057655,0.00021917,2]
[355999923,1741791042315,-500.0,0.00021917,2]
[355999924,1741791042325,-500.0,0.00021917,2]
[355999925,1741791042334,-513.8267618,0.00021917,2]
[355999926,1741791042343,-1999.74,0.00021917,2]
[355999927,1741791042353,-523.29088961,0.00021917,2]
[355999928,1741791042363,-512.03859362,0.00021917,2]
[355999929,1741791042377,-500.0,0.00021917,2]
[355999930,1741791042386,-500.0,0.00021917,2]
[355999931,1741791042395,-503.63777399,0.00021917,2]
[355999932,1741791042405,-593.6,0.00021917,2]
[355999933,1741791042415,-514.45447354,0.00021917,2]
[355999934,1741791042424,-500.0,0.00021917,2]
[355999935,1741791042433,-500.0,0.00021917,2]
[355999936,1741791042444,-511.52939846,0.00021917,2]
[355999937,1741791042454,-1113.38,0.00021917,2]
[355999938,1741791042464,-530.58618749,0.00021917,2]
[355999940,1741791042473,-510.58789406,0.00021917,2]
[355999942,1741791042483,-500.0,0.00021917,2]
[355999943,1741791042492,-500.0,0.00021917,2]
[355999944,1741791042502,-500.0,0.00021917,2]
[355999945,1741791042511,-477.01663991,0.00021917,2]
[355999946,1741791042520,-569.98,0.00021917,2]
[355999947,1741791042530,-500.0,0.00021917,2]
[355999948,1741791042539,-500.0,0.00021917,2]
[355999949,1741791042552,-20933.39,0.00021917,2]
[355999950,1741791042561,-948.89,0.00021917,2]
[355999951,1741791042571,-516.60070537,0.00021917,2]
[355999952,1741791042580,-558.31316494,0.00021917,2]
[355999953,1741791042590,-519.9295524,0.00021917,2]
[355999954,1741791042599,-200.0,0.00021917,2]
[355999955,1741791042608,-559.31131292,0.00021917,2]
[355999956,1741791042617,-516.31551597,0.00021917,2]
[355999957,1741791042627,-500.0,0.00021917,2]
[355999958,1741791042636,-500.0,0.00021917,2]
[355999959,1741791042645,-500.0,0.00021917,2]
[355999961,1741791042655,-541.03948133,0.00021917,2]
[355999962,1741791042664,-506.05569522,0.00021917,2]
[355999963,1741791042674,-314.34067797,0.00021917,2]
[355999964,1741791042683,-500.0,0.00021917,2]
[355999965,1741791042692,-500.0,0.00021917,2]
[355999966,1741791042702,-500.0,0.00021917,2]
[355999970,1741791042714,-500.0,0.00021917,2]
[355999972,1741791042723,-628.97,0.00021917,2]
[355999974,1741791042732,-506.8930528,0.00021917,2]
[355999975,1741791042742,-500.0,0.00021917,2]
[355999976,1741791042751,-886.76,0.00021917,2]
[355999977,1741791042760,-509.62744111,0.00021917,2]
[355999979,1741791042770,-1936.07,0.00021917,2]
[355999981,1741791042779,-1000.0,0.00021917,7]
[355999987,1741791042932,-520.42814251,0.00021917,2]
[355999988,1741791042942,-500.0,0.00021917,2]
[355999989,1741791042952,-500.0,0.00021917,2]
[355999990,1741791042961,-495.0,0.00021917,2]
[355999992,1741791042970,-500.0,0.00021917,2]
[355999994,1741791042980,-1095.81,0.00021917,2]
[355999995,1741791042991,-500.0,0.00021917,2]
[355999996,1741791043000,-515.2798722,0.00021917,2]
[355999997,1741791043009,-520.78843635,0.00021917,2]
[355999998,1741791043018,-511.90442643,0.00021917,2]
[355999999,1741791043027,-506.31443036,0.00021917,2]
[356000001,1741791043037,-517.92205332,0.00021917,2]
[356000002,1741791043047,-931.19,0.00021917,2]
[356000003,1741791043056,-500.0,0.00021917,2]
[356000004,1741791043065,-931.69,0.00021917,2]
[356000005,1741791043075,-1382.13,0.00021917,2]
[356000006,1741791043084,-1382.13,0.00021917,2]
[356000007,1741791043094,-1382.13,0.00021917,2]
[356000008,1741791043103,-500.0,0.00021917,2]
[356000009,1741791043112,-1382.13,0.00021917,2]
[356000010,1741791043122,-1382.13,0.00021917,2]
[356000011,1741791043132,-1382.13,0.00021917,2]
[356000012,1741791043141,-1382.13,0.00021917,2]
[356000013,1741791043151,-1382.13,0.00021917,2]
[356000014,1741791043160,-1444.78,0.00021917,2]
[356000015,1741791043170,-1382.13,0.00021917,2]
[356000016,1741791043179,-1382.13,0.00021917,2]
[356000017,1741791043189,-1382.13,0.00021917,2]
[356000018,1741791043199,-1382.13,0.00021917,2]
[356000019,1741791043208,-500.0,0.00021917,2]
[356000020,1741791043218,-1382.13,0.00021917,2]
[356000021,1741791043228,-1382.13,0.00021917,2]
[356000022,1741791043237,-500.0,0.00021917,2]
[356000023,1741791043247,-1382.13,0.00021917,2]
[356000024,1741791043256,-1382.13,0.00021917,2]
[356000025,1741791043266,-1382.13,0.00021917,2]
[356000026,1741791043276,-1382.13,0.00021917,2]
[356000027,1741791043285,-1382.13,0.00021917,2]
[356000028,1741791043297,-791.66,0.00021917,2]
[356000029,1741791043306,-1382.13,0.00021917,2]
[356000030,1741791043315,-1382.13,0.00021917,2]
[356000031,1741791043325,-1382.13,0.00021917,2]
[356000032,1741791043334,-1382.13,0.00021917,2]
[356000033,1741791043344,-1382.17871699,0.00021917,2]
[356000034,1741791043354,-500.0,0.00021917,5]
[356000035,1741791043364,-500.0,0.00021917,2]
[356000036,1741791043378,-2945.61,0.00021917,2]
[356000037,1741791043387,-500.0,0.00021917,2]
[356000038,1741791043397,-500.0,0.00021917,2]
[356000039,1741791043407,-500.0,0.00021917,2]
[356000040,1741791043416,-511.91483031,0.00021917,2]
[356000041,1741791043426,-501.74341373,0.00021917,2]
[356000042,1741791043435,-815.66,0.00021917,2]
[356000043,1741791043445,-500.0,0.00021917,2]
[356000044,1741791043455,-24632.72,0.00021917,2]
[356000045,1741791043464,-464.09170446,0.00021917,2]
[356000046,1741791043474,-518.63931351,0.00021917,2]
[356000047,1741791043484,-507.31848725,0.00021917,2]
[356000048,1741791043493,-501.96633861,0.00021917,2]
[356000049,1741791043502,-500.0,0.00021917,2]
[356000050,1741791043511,-500.0,0.00021917,2]